bitfinex-derivatives/quotes_BNBF0:USTF0_20250302
["timestamp","ask_amount","ask_price","bid_price","bid_amount"]
[1740920331743,2.57294158,608.72,608.02,5.26493654]
[1740920331941,1.43721906,608.71,608.02,5.26493654]
[1740920332144,1.13572252,608.72,608.02,5.26493654]
[1740920332344,1.13572252,608.7,608.02,5.26493654]
[1740920332745,1.13572252,608.69,608.02,5.26493654]
[1740920332942,1.13572252,608.68,608.02,5.26493654]
[1740920333447,1.13572252,608.67,608.02,5.26493654]
[1740920333848,1.13572252,608.66,608.02,5.26493654]
[1740920334548,1.13572252,608.65,608.02,5.26493654]
[1740920334944,1.13572252,608.64,608.02,5.26493654]
[1740920335346,1.13572252,608.63,608.02,5.26493654]
[1740920336045,1.13572252,608.62,608.02,5.26493654]
[1740920336648,1.13572252,608.61,608.02,5.26493654]
[1740920337550,1.13572252,608.6,608.02,5.26493654]
[1740920337751,1.13572252,608.59,608.02,5.26493654]
[1740920338146,1.13572252,608.58,608.02,5.26493654]
[1740920338552,3.046398,608.78,608.02,5.26493654]
[1740920338752,3.046398,608.77,608.02,5.26493654]
[1740920338958,3.046398,608.76,608.02,5.26493654]
[1740920339157,1.43714597,608.75,608.02,5.26493654]
[1740920339358,1.43714597,608.74,608.02,5.26493654]
[1740920339660,1.43714597,608.73,608.02,5.26493654]
[1740920339862,1.43714597,608.72,608.02,5.26493654]
[1740920340059,1.43714597,608.71,608.02,5.26493654]
[1740920340360,1.43714597,608.7,608.02,5.26493654]
[1740920340555,1.43714597,608.69,608.02,5.26493654]
[1740920340755,1.13573248,608.69,608.02,5.26493654]
[1740920340955,1.13573248,608.68,608.02,5.26493654]
[1740920341360,1.13573248,608.67,608.02,5.26493654]
[1740920342062,1.13573248,608.66,608.02,5.26493654]
[1740920342561,1.13573248,608.65,608.02,5.26493654]
[1740920343160,1.13573248,608.64,608.02,5.26493654]
[1740920343955,1.13573248,608.63,608.02,5.26493654]
[1740920344657,1.13573248,608.62,608.02,5.26493654]
[1740920345162,1.13573248,608.61,608.02,5.26493654]
[1740920345657,1.13573248,608.6,608.02,5.26493654]
[1740920346056,1.43721309,608.76,608.02,5.26493654]
[1740920346260,2.57294249,608.75,608.02,5.26493654]
[1740920346459,1.43721309,608.74,608.02,5.26493654]
[1740920346762,2.57294249,608.73,608.02,5.26493654]
[1740920346961,1.43721309,608.72,608.02,5.26493654]
[1740920347261,1.43715463,608.71,608.02,5.26493654]
[1740920347462,1.1357294,608.72,608.02,5.26493654]
[1740920347763,1.1357294,608.7,608.02,5.26493654]
[1740920347963,1.1357294,608.71,608.02,5.26493654]
[1740920348365,1.1357294,608.7,608.02,5.26493654]
[1740920348563,1.1357294,608.69,608.02,5.26493654]
[1740920348959,1.1357294,608.68,608.02,5.26493654]
[1740920349659,1.1357294,608.67,608.02,5.26493654]
[1740920350062,1.1357294,608.66,608.02,5.26493654]
[1740920350366,1.1357294,608.65,608.02,5.26493654]
[1740920351066,1.1357294,608.64,608.02,5.26493654]
[1740920351566,1.1357294,608.63,608.02,5.26493654]
[1740920351865,1.1357294,608.62,608.02,5.26493654]
[1740920352265,1.1357294,608.61,608.02,5.26493654]
[1740920352659,1.1357294,608.6,608.02,5.26493654]
[1740920353065,1.1357294,608.59,608.02,5.26493654]
[1740920353569,1.1357294,608.58,608.02,5.26493654]
[1740920354070,1.1357294,608.57,608.02,5.26493654]
[1740920354571,1.1357294,608.56,608.02,5.26493654]
[1740920354870,1.1357294,608.55,608.02,5.26493654]
[1740920355271,1.1357294,608.54,608.02,5.26493654]
[1740920355570,1.43718894,608.7,608.02,5.26493654]
[1740920355771,1.43718894,608.69,608.02,5.26493654]
[1740920355967,1.43718894,608.68,608.02,5.26493654]
[1740920356271,1.43718894,608.67,608.02,5.26493654]
[1740920356469,1.43718894,608.66,608.02,5.26493654]
[1740920356672,1.43718894,608.65,608.02,5.26493654]
[1740920356865,1.43718894,608.64,608.02,5.26493654]
[1740920357069,1.13574439,608.64,608.02,5.26493654]
[1740920357672,1.13574439,608.63,608.02,5.26493654]
[1740920358467,1.13574439,608.62,608.02,5.26493654]
[1740920358871,1.13574439,608.61,608.02,5.26493654]
[1740920359472,1.13574439,608.6,608.02,5.26493654]
[1740920359871,1.13574439,608.59,608.02,5.26493654]
[1740920360271,1.13574439,608.58,608.02,5.26493654]
[1740920360874,1.13574439,608.57,608.02,5.26493654]
[1740920361273,1.13574439,608.56,608.02,5.26493654]
[1740920361673,1.13574439,608.55,608.02,5.26493654]
[1740920362277,1.13574439,608.54,608.02,5.26493654]
[1740920362573,1.13574439,608.53,608.02,5.26493654]
[1740920362975,1.43708994,608.64,608.02,5.26493654]
[1740920363169,1.43702022,608.63,608.02,5.26493654]
[1740920363371,1.43702022,608.62,608.02,5.26493654]
[1740920363575,1.13557017,608.61,608.02,5.26493654]
[1740920364177,1.13557017,608.6,608.02,5.26493654]
[1740920364678,1.71625843,608.69,608.02,5.26493654]
[1740920364679,1.13557017,608.59,608.02,5.26493654]
[1740920365379,1.13557017,608.58,608.02,5.26493654]
[1740920365878,1.13557017,608.57,608.02,5.26493654]
[1740920366581,1.13557017,608.56,608.02,5.26493654]
[1740920366875,1.13557017,608.55,608.02,5.26493654]
[1740920367279,1.13557017,608.54,608.02,5.26493654]
[1740920367680,1.13557017,608.53,608.02,5.26493654]
[1740920368578,1.13557017,608.52,608.02,5.26493654]
[1740920369174,1.13557017,608.51,608.02,5.26493654]
[1740920369779,1.71626548,608.69,608.02,5.26493654]
[1740920370082,2.57204249,608.68,608.02,5.26493654]
[1740920370275,1.43669479,608.67,608.02,5.26493654]
[1740920370476,1.43669479,608.66,608.02,5.26493654]
[1740920370677,1.43669479,608.65,608.02,5.26493654]
[1740920370877,1.43669479,608.64,608.02,5.26493654]
[1740920371077,1.43669479,608.63,608.02,5.26493654]
[1740920371278,1.43669479,608.62,608.02,5.26493654]
[1740920371481,1.43669479,608.61,608.02,5.26493654]
[1740920371676,2.57204249,608.6,608.02,5.26493654]
[1740920371978,1.1353477,608.6,608.02,5.26493654]
[1740920372579,1.1353477,608.59,608.02,5.26493654]
[1740920372980,1.1353477,608.58,608.02,5.26493654]
[1740920373479,1.1353477,608.57,608.02,5.26493654]
[1740920373879,1.1353477,608.56,608.02,5.26493654]
[1740920374179,1.1353477,608.55,608.02,5.26493654]
[1740920374581,1.1353477,608.54,608.02,5.26493654]
[1740920375286,1.1353477,608.53,608.02,5.26493654]
[1740920376086,1.1353477,608.52,608.02,5.26493654]
[1740920376486,1.1353477,608.51,608.02,5.26493654]
[1740920376989,1.43675175,608.66,608.02,5.26493654]
[1740920377190,1.43675175,608.65,608.02,5.26493654]
[1740920377391,1.43675175,608.64,608.02,5.26493654]
[1740920377596,1.13537846,608.65,608.02,5.26493654]
[1740920377597,2.57213021,608.63,608.02,5.26493654]
[1740920377788,1.43675175,608.62,608.02,5.26493654]
[1740920377989,2.57213021,608.61,608.02,5.26493654]
[1740920378190,1.13537846,608.61,608.02,5.26493654]
[1740920378791,1.13537846,608.6,608.02,5.26493654]
[1740920379296,1.13537846,608.59,608.02,5.26493654]
[1740920379489,1.13537846,608.58,608.02,5.26493654]
[1740920380291,1.13537846,608.57,608.02,5.26493654]
[1740920380493,1.13537846,608.56,608.02,5.26493654]
[1740920380896,1.13537846,608.55,608.02,5.26493654]
[1740920381597,1.13537846,608.54,608.02,5.26493654]
[1740920382194,1.13537846,608.53,608.02,5.26493654]
[1740920382598,3.04511877,608.71,608.02,5.26493654]
[1740920382794,1.43657837,608.7,608.02,5.26493654]
[1740920382993,1.43657837,608.69,608.02,5.26493654]
[1740920383199,1.43657837,608.68,608.02,5.26493654]
[1740920383400,1.43657837,608.67,608.02,5.26493654]
[1740920383594,1.43657837,608.66,608.02,5.26493654]
[1740920383795,2.57180467,608.65,608.02,5.26493654]
[1740920383998,1.43657837,608.64,608.02,5.26493654]
[1740920384194,1.1352263,608.65,608.02,5.26493654]
[1740920384195,1.1352263,608.63,608.02,5.26493654]
[1740920384596,1.1352263,608.62,608.02,5.26493654]
[1740920385405,1.1352263,608.61,608.02,5.26493654]
[1740920385905,1.1352263,608.6,608.02,5.26493654]
[1740920386299,1.1352263,608.59,608.02,5.26493654]
[1740920386500,1.1352263,608.58,608.02,5.26493654]
[1740920387202,1.43646416,608.68,608.02,5.26493654]
[1740920387203,1.1352263,608.57,608.02,5.26493654]
[1740920390008,1.1352263,608.56,608.02,5.26493654]
[1740920390407,1.1352263,608.55,608.02,5.26493654]
[1740920391408,1.1352263,608.54,608.02,5.26493654]
[1740920392005,1.1352263,608.53,608.02,5.26493654]
[1740920392804,3.04541487,608.7,608.02,5.26493654]
[1740920393009,3.04541487,608.69,608.02,5.26493654]
[1740920393209,1.43670567,608.68,608.02,5.26493654]
[1740920393410,1.43670567,608.67,608.02,5.26493654]
[1740920393610,2.5721703,608.66,608.02,5.26493654]
[1740920393808,1.43670567,608.65,608.02,5.26493654]
[1740920394007,1.43670567,608.64,608.02,5.26493654]
[1740920394209,1.43670567,608.63,608.02,5.26493654]
[1740920394405,1.716068,608.74,608.02,5.26493654]
[1740920394406,2.5721703,608.62,608.02,5.26493654]
[1740920394612,1.43697682,608.61,608.02,5.26493654]
[1740920394807,1.13546463,608.62,608.02,5.26493654]
[1740920395020,1.13546463,608.6,608.02,5.26493654]
[1740920395914,1.13546463,608.59,608.02,5.26493654]
[1740920396509,1.716068,608.74,608.02,5.26493654]
[1740920396712,1.13561804,608.58,608.02,5.26493654]
[1740920397410,1.13561804,608.57,608.02,5.26493654]
[1740920397814,1.13561804,608.56,608.02,5.26493654]
[1740920398114,1.13561804,608.55,608.02,5.26493654]
[1740920398917,1.13561804,608.54,608.02,5.26493654]
[1740920399814,1.13561804,608.53,608.02,5.26493654]
[1740920400313,1.43716608,608.71,608.02,5.26493654]
[1740920400518,1.43720381,608.7,608.02,5.26493654]
[1740920400710,2.57295735,608.69,608.02,5.26493654]
[1740920400910,1.43720381,608.68,608.02,5.26493654]
[1740920401111,1.13575354,608.69,608.02,5.26493654]
[1740920401112,1.43720381,608.67,608.02,5.26493654]
[1740920401314,1.43720381,608.66,608.02,5.26493654]
[1740920401617,1.13575354,608.67,608.02,5.26493654]
[1740920401618,1.43720381,608.65,608.02,5.26493654]
[1740920401817,0.98423929,608.83,608.02,5.26493654]
[1740920401818,2.57295735,608.64,608.02,5.26493654]
[1740920402116,1.13575354,608.64,608.02,5.26493654]
[1740920402417,2.57309457,608.63,608.02,5.26493654]
[1740920402616,1.13575354,608.63,608.02,5.26493654]
[1740920402817,1.13575354,608.62,608.02,5.26493654]
[1740920403319,1.13575354,608.61,608.02,5.26493654]
[1740920403518,1.13575354,608.6,608.02,5.26493654]
[1740920404416,1.13575354,608.59,608.02,5.26493654]
[1740920404917,1.13575354,608.58,608.02,5.26493654]
[1740920405515,1.13575354,608.57,608.02,5.26493654]
[1740920405918,1.13575354,608.56,608.02,5.26493654]
[1740920406713,1.13575354,608.55,608.02,5.26493654]
[1740920406911,1.13575354,608.54,608.02,5.26493654]
[1740920407316,1.13575354,608.53,608.02,5.26493654]
[1740920407619,1.13575354,608.52,608.02,5.26493654]
[1740920408118,1.13575354,608.51,608.02,5.26493654]
[1740920408418,1.13575354,608.5,608.02,5.26493654]
[1740920409019,3.04842216,608.74,608.02,5.26493654]
[1740920409219,3.04842216,608.73,608.02,5.26493654]
[1740920409421,3.04842216,608.72,608.02,5.26493654]
[1740920409614,3.04842216,608.71,608.02,5.26493654]
[1740920409815,3.04842216,608.7,608.02,5.26493654]
[1740920410015,3.04842216,608.69,608.02,5.26493654]
[1740920410321,3.04842216,608.68,608.02,5.26493654]
[1740920410514,3.04842216,608.67,608.02,5.26493654]
[1740920410718,1.43812634,608.66,608.02,5.26493654]
[1740920410917,1.43812634,608.65,608.02,5.26493654]
[1740920411121,1.43812634,608.64,608.02,5.26493654]
[1740920411421,2.5747884,608.63,608.02,5.26493654]
[1740920411621,1.43867555,608.62,608.02,5.26493654]
[1740920411818,1.13666206,608.62,608.02,5.26493654]
[1740920412521,1.13666206,608.61,608.02,5.26493654]
[1740920412917,1.13666206,608.6,608.02,5.26493654]
[1740920413316,1.13666206,608.59,608.02,5.26493654]
[1740920413718,1.13666206,608.58,608.02,5.26493654]
[1740920414618,1.13666206,608.57,608.02,5.26493654]
[1740920415625,1.13666206,608.56,608.02,5.26493654]
[1740920416225,1.13666206,608.55,608.02,5.26493654]
[1740920416925,1.71613147,608.75,608.02,5.26493654]
[1740920416926,1.13666206,608.54,608.02,5.26493654]
[1740920417321,1.13666206,608.53,608.02,5.26493654]
[1740920417827,1.13666206,608.52,608.02,5.26493654]
[1740920418030,1.13666206,608.52,608.02,4.70193654]
[1740920418527,1.13666206,608.51,608.02,4.70193654]
[1740920419126,1.13666206,608.51,608.02,3.17193654]
[1740920419629,1.13666206,608.51,608.02,1.58393654]
[1740920419928,1.13666206,608.5,608.02,1.58393654]
[1740920420229,1.13666206,608.49,608.02,1.58393654]
[1740920420527,1.13666206,608.49,608.02,0.32893654]
[1740920420926,1.61123638,608.72,608.02,0.32893654]
[1740920421122,3.05020751,608.71,608.02,0.32893654]
[1740920421326,4.18735114,608.7,608.02,0.88993654]
[1740920421522,3.05021541,608.69,608.02,0.88993654]
[1740920421724,4.18735904,608.68,608.02,0.88993654]
[1740920421923,3.05021541,608.67,608.02,0.88993654]
[1740920422121,4.18735904,608.66,608.02,0.88993654]
[1740920422322,3.05021541,608.65,608.02,0.88993654]
[1740920422529,4.18735904,608.64,608.02,2.07093654]
[1740920422727,1.43897113,608.63,608.02,2.07093654]
[1740920422928,4.18738383,608.62,608.02,2.07093654]
[1740920423129,1.43897113,608.61,608.02,2.07093654]
[1740920423329,2.57611476,608.6,608.02,2.07093654]
[1740920423531,1.43897113,608.59,608.02,2.07093654]
[1740920423728,1.43897113,608.58,608.02,2.07093654]
[1740920423929,2.57611476,608.57,608.02,2.07093654]
[1740920424129,1.13714363,608.56,608.02,2.07093654]
[1740920424530,1.13714363,608.55,608.02,2.07093654]
[1740920425131,1.13714363,608.54,608.02,2.07093654]
[1740920425631,1.13714363,608.53,608.02,2.07093654]
[1740920426228,1.13714363,608.52,608.02,2.07093654]
[1740920426427,1.13714363,608.51,608.02,2.07093654]
[1740920426927,1.13714363,608.5,608.02,2.07093654]
[1740920427329,1.13714363,608.49,608.02,2.07093654]
[1740920427533,1.43893713,608.48,608.02,2.07093654]
[1740920427733,2.57608076,608.47,608.02,2.07093654]
[1740920428034,1.43893713,608.46,608.02,2.07093654]
[1740920428232,1.13714363,608.46,608.02,2.07093654]
[1740920428431,1.13714363,608.45,608.02,2.07093654]
[1740920428830,1.13714363,608.44,608.02,2.07093654]
[1740920429034,1.43825091,608.43,608.02,2.07093654]
[1740920429234,1.13714363,608.44,608.02,2.07093654]
[1740920429430,1.13714363,608.42,608.02,2.07093654]
[1740920430033,1.13714363,608.41,608.02,2.07093654]
[1740920430731,1.13714363,608.4,608.02,2.07093654]
[1740920431329,1.13714363,608.39,608.02,2.07093654]
[1740920431930,0.98500198,608.78,608.02,2.07093654]
[1740920432237,1.71649828,608.59,608.02,2.07093654]
[1740920432437,1.43670569,608.58,608.02,2.07093654]
[1740920432736,1.43670569,608.57,608.02,2.07093654]
[1740920432936,1.43670569,608.56,608.02,2.07093654]
[1740920433137,1.43670569,608.55,608.02,2.07093654]
[1740920433337,1.43670569,608.54,608.02,2.07093654]
[1740920433536,1.13535567,608.53,608.02,2.07093654]
[1740920434137,1.13535567,608.52,608.02,2.07093654]
[1740920434642,1.13535567,608.51,608.02,2.07093654]
[1740920435139,1.13535567,608.5,608.02,2.07093654]
[1740920435733,1.13535567,608.49,608.02,2.07093654]
[1740920436134,1.13535567,608.48,608.02,2.07093654]
[1740920436440,1.13535567,608.47,608.02,2.07093654]
[1740920436937,1.13535567,608.46,608.02,1.50993654]
[1740920437341,1.71641362,608.59,608.02,1.50993654]
[1740920437538,1.43592686,608.58,608.02,1.50993654]
[1740920437742,1.71641362,608.59,608.02,3.36393654]
[1740920438043,1.43593244,608.58,608.02,3.36393654]
[1740920438243,1.13474915,608.58,608.02,3.36393654]
[1740920438443,1.13474915,608.57,608.02,3.36393654]
[1740920439037,1.13474915,608.56,608.02,3.36393654]
[1740920439243,1.13474915,608.55,608.02,3.36393654]
[1740920439638,1.13474915,608.54,608.02,3.36393654]
[1740920440041,1.13474915,608.53,608.02,3.92493654]
[1740920440844,1.13474915,608.52,608.02,3.92493654]
[1740920441240,1.13474915,608.51,608.02,3.92493654]
[1740920441446,1.13474915,608.5,608.02,3.92493654]
[1740920442146,1.13474915,608.49,608.02,3.92493654]
[1740920442346,1.71631486,608.65,608.02,3.92493654]
[1740920442347,1.13474915,608.48,608.02,3.92493654]
[1740920442847,1.13474915,608.47,608.02,3.92493654]
[1740920443839,1.13474915,608.46,608.02,3.92493654]
[1740920444045,1.13474915,608.45,608.02,3.92493654]
[1740920444748,1.13474915,608.44,608.02,3.92493654]
[1740920445342,1.13474915,608.43,608.02,3.92493654]
[1740920445747,1.13474915,608.42,608.02,3.92493654]
[1740920445947,1.13474915,608.41,608.02,3.92493654]
[1740920446352,1.13474915,608.4,608.02,3.92493654]
[1740920446944,1.60752013,608.57,608.02,3.92493654]
[1740920446945,1.13474915,608.39,608.02,3.92493654]
[1740920447751,1.13474915,608.38,608.02,3.92493654]
[1740920448046,1.4352979,608.53,608.02,3.92493654]
[1740920448352,1.4352979,608.52,608.02,3.92493654]
[1740920448548,1.7163854,608.6,608.02,3.92493654]
[1740920448749,1.4352979,608.59,608.02,3.92493654]
[1740920448950,1.13417172,608.52,608.02,3.92493654]
[1740920449145,1.13417172,608.52,608.02,5.08493654]
[1740920452152,1.13417172,608.51,608.02,5.08493654]
[1740920452550,1.13417172,608.5,608.02,5.08493654]
[1740920453053,1.13417172,608.49,608.02,5.08493654]
[1740920453851,1.13417172,608.48,608.02,5.08493654]
[1740920454148,1.13417172,608.47,608.02,5.08493654]
[1740920454747,1.13417172,608.46,608.02,5.08493654]
[1740920455146,1.13417172,608.45,608.02,5.08493654]
[1740920455654,1.71636423,608.67,608.02,5.08493654]
[1740920455852,1.43470531,608.66,608.02,5.08493654]
[1740920456048,1.43470531,608.65,608.02,5.08493654]
[1740920456248,1.43470531,608.64,608.02,5.08493654]
[1740920456553,1.13379205,608.64,608.02,5.08493654]
[1740920457054,1.13379205,608.63,608.02,5.08493654]
[1740920457754,1.13379205,608.62,608.02,5.08493654]
[1740920458152,1.13379205,608.61,608.02,5.08493654]
[1740920458656,1.13379205,608.6,608.02,5.08493654]
[1740920459048,1.13379205,608.59,608.02,5.08493654]
[1740920459453,1.13388877,608.58,608.02,5.08493654]
[1740920460052,1.43484414,608.64,608.02,5.08493654]
[1740920460053,1.13388877,608.57,608.02,5.08493654]
[1740920460656,1.13388877,608.56,608.02,5.08493654]
[1740920461362,1.13388877,608.55,608.02,5.08493654]
[1740920462160,1.13388877,608.54,608.02,5.08493654]
[1740920462462,1.13388877,608.53,608.02,5.08493654]
[1740920462964,1.13388877,608.52,608.02,5.08493654]
[1740920463558,1.13388877,608.51,608.02,5.08493654]
[1740920464163,1.13388877,608.5,608.02,5.08493654]
[1740920464763,1.13388877,608.49,608.02,5.08493654]
[1740920465270,1.13388877,608.48,608.02,5.08493654]
[1740920465465,1.13388877,608.47,608.02,5.08493654]
[1740920465666,1.435106,608.6,608.02,5.08493654]
[1740920465972,1.435106,608.59,608.02,5.08493654]
[1740920466166,2.56927967,608.58,608.02,5.08493654]
[1740920466367,1.435106,608.57,608.02,5.08493654]
[1740920466663,1.13417367,608.58,608.02,5.08493654]
[1740920466869,2.56941118,608.57,608.02,5.08493654]
[1740920467065,1.43528571,608.56,608.02,5.08493654]
[1740920467271,1.13417367,608.57,608.02,5.08493654]
[1740920467465,1.13417367,608.55,608.02,5.08493654]
[1740920468270,1.13417367,608.54,608.02,5.08493654]
[1740920468666,1.13417367,608.53,608.02,5.08493654]
[1740920469072,1.13417367,608.52,608.02,5.08493654]
[1740920469473,1.13417367,608.51,608.02,5.08493654]
[1740920469973,1.13417367,608.5,608.02,5.08493654]
[1740920470668,1.13417367,608.49,608.02,5.08493654]
[1740920471071,1.13417367,608.48,608.02,5.08493654]
[1740920471667,1.13417367,608.47,608.02,5.08493654]
[1740920472270,1.13417367,608.46,608.02,5.08493654]
[1740920472871,1.13417367,608.45,608.02,5.08493654]
[1740920473475,1.13417367,608.44,608.02,5.08493654]
[1740920473871,1.13417367,608.43,608.02,5.08493654]
[1740920474468,1.60776669,608.56,608.02,5.08493654]
[1740920474469,1.13417367,608.42,608.02,5.08493654]
[1740920474976,1.13417367,608.41,608.02,5.08493654]
[1740920475679,1.13417367,608.4,608.02,5.08493654]
[1740920475875,1.13417367,608.39,608.02,5.08493654]
[1740920476573,1.13417367,608.38,608.02,5.08493654]
[1740920477171,1.13417367,608.37,608.02,5.08493654]
[1740920477579,1.13417367,608.36,608.02,5.08493654]
[1740920477973,1.13417367,608.35,608.02,5.08493654]
[1740920478279,1.13417367,608.34,608.02,5.08493654]
[1740920478677,2.57049292,608.33,608.02,5.08493654]
[1740920478878,1.43631925,608.32,608.02,5.08493654]
[1740920479079,1.13417367,608.31,608.02,0.32893654]
[1740920479578,1.43603809,608.3,608.02,0.32893654]
[1740920479784,1.43603809,608.29,608.02,0.32893654]
[1740920480079,1.43609749,608.28,608.02,0.32893654]
[1740920480282,1.13417367,608.3,608.02,0.32893654]
[1740920480475,2.569832,608.29,608.02,0.32893654]
[1740920480675,1.13417367,608.29,608.02,0.32893654]
[1740920481075,1.13417367,608.28,608.02,0.32893654]
[1740920481375,1.13417367,608.27,608.02,0.32893654]
[1740920481777,1.13417367,608.26,608.02,0.32893654]
[1740920482282,1.13417367,608.25,608.02,0.32893654]
[1740920482781,1.13417367,608.24,608.02,0.32893654]
[1740920483381,1.13417367,608.23,608.02,0.32893654]
[1740920483778,1.43516551,608.38,608.02,0.32893654]
[1740920483981,1.43516551,608.37,608.02,0.32893654]
[1740920484183,1.43516551,608.36,608.02,0.32893654]
[1740920484484,1.43516551,608.35,608.02,0.32893654]
[1740920484680,1.43516551,608.34,608.02,0.32893654]
[1740920484884,1.13348413,608.35,608.02,0.32893654]
[1740920484885,1.43516551,608.33,608.02,0.32893654]
[1740920485083,1.13348413,608.35,608.02,0.32893654]
[1740920485284,1.13348413,608.32,608.02,0.32893654]
[1740920485486,1.13348413,608.32,607.94,5.25]
[1740920485681,1.13348413,608.31,607.94,5.25]
[1740920486289,4.28477247,608.3,607.94,5.25]
[1740920486487,3.04104491,608.29,607.94,5.25]
[1740920486888,1.13348413,608.28,607.94,5.25]
[1740920487490,1.13348413,608.27,607.94,5.25]
[1740920487991,4.17452904,608.26,607.94,5.25]
[1740920488193,3.04104491,608.25,607.94,5.25]
[1740920488490,3.04104491,608.24,607.94,5.25]
[1740920488691,3.04104491,608.23,607.94,5.25]
[1740920488894,3.04104491,608.22,607.94,5.25]
[1740920489091,1.60684771,608.21,607.94,5.25]
[1740920489291,1.13348413,608.2,607.94,5.25]
[1740920490198,1.13348413,608.19,607.94,5.25]
[1740920491097,1.13348413,608.18,607.94,5.25]
[1740920491698,1.13348413,608.17,607.94,5.25]
[1740920492101,2.85082948,608.16,607.94,5.25]
[1740920492894,1.13348413,608.15,607.94,5.25]
[1740920495202,1.13348413,608.15,607.94,3.438]
[1740920495400,1.71734535,608.16,607.94,3.438]
[1740920497301,3.42791787,609.53,607.94,3.438]
[1740920497302,4.15893309,608.42,607.94,3.438]
[1740920497497,1.71723942,608.26,607.94,3.438]
[1740920497697,3.02544896,608.4,607.94,3.438]
[1740920497900,1.13348413,608.25,607.94,3.438]
[1740920498402,2.85066,608.24,607.94,3.438]
[1740920498602,1.13348413,608.23,607.94,3.438]
[1740920499205,1.13348413,608.22,607.94,3.438]
[1740920499699,1.13348413,608.21,607.94,3.438]
[1740920500298,1.13348413,608.2,607.94,3.438]
[1740920500900,1.13348413,608.19,607.94,3.438]
[1740920501102,2.85082242,608.19,607.94,3.438]
[1740920501300,2.85082242,608.19,607.94,1.997]
[1740920501500,1.71733829,608.19,607.94,1.997]
[1740920503707,1.13348413,608.18,607.94,1.997]
[1740920504009,1.13348413,608.17,607.94,1.997]
[1740920504400,1.13348413,608.16,607.94,1.997]
[1740920506207,1.13348413,608.16,607.94,1.436]
[1740920507305,1.71736654,608.15,607.93,1.9]
[1740920511709,1.13348413,608.38,607.93,1.9]
[1740920511907,1.71723942,608.25,607.93,1.9]
[1740920512108,1.13348413,608.38,607.93,1.9]
[1740920512913,1.71707702,608.37,607.93,1.9]
[1740920514209,1.13348413,608.36,607.93,1.9]
[1740920514611,1.13348413,608.35,607.93,1.9]
[1740920515612,1.13348413,608.34,607.93,1.9]
[1740920516214,2.85058939,608.33,607.93,1.9]
[1740920516412,1.13348413,608.32,607.93,1.9]
[1740920516814,1.13348413,608.31,607.93,1.9]
[1740920517414,1.13348413,608.3,607.93,1.9]
[1740920518016,1.13348413,608.29,607.93,1.9]
[1740920518513,1.13348413,608.28,607.93,1.9]
[1740920518718,1.71710526,608.33,607.93,1.9]
[1740920518719,1.13348413,608.27,607.93,1.9]
[1740920519119,1.71712644,608.31,607.93,1.9]
[1740920520021,1.13348413,608.3,607.93,1.9]
[1740920520420,1.13348413,608.29,607.93,1.9]
[1740920521121,1.13348413,608.28,607.93,1.9]
[1740920521324,1.13348413,608.27,607.93,1.9]
[1740920522022,1.13348413,608.58,607.93,1.9]
[1740920522215,1.71712644,608.26,607.93,1.9]
[1740920522415,1.59763258,608.57,607.93,1.9]
[1740920522714,1.71713351,608.25,607.93,1.9]
[1740920522919,4.15784552,608.56,607.93,1.9]
[1740920523120,3.02436139,608.55,607.93,1.9]
[1740920523322,1.71714057,608.25,607.93,1.9]
[1740920523618,3.02436139,608.53,607.93,1.9]
[1740920523823,1.59763258,608.52,607.93,1.9]
[1740920524016,2.8504129,608.54,607.93,1.9]
[1740920524017,1.13348413,608.51,607.93,1.9]
[1740920524618,1.13348413,608.5,607.93,1.9]
[1740920525125,2.85036349,608.49,607.93,1.9]
[1740920525323,1.59763258,608.48,607.93,1.9]
[1740920525521,1.13348413,608.47,607.93,1.9]
[1740920526227,1.13348413,608.46,607.93,1.9]
[1740920526820,1.13348413,608.45,607.93,1.9]
[1740920527020,1.13348413,608.44,607.93,1.9]
[1740920527523,1.13348413,608.43,607.93,1.9]
[1740920528222,2.8504129,608.42,607.93,1.9]
[1740920528824,1.13348413,608.41,607.93,1.9]
[1740920529631,1.13348413,608.4,607.93,1.9]
[1740920530224,1.13348413,608.39,607.93,1.9]
[1740920530633,1.13348413,608.39,607.93,3.51]
[1740920530826,1.13348413,608.38,607.93,3.51]
[1740920531125,2.85044114,608.38,607.93,3.51]
[1740920531330,1.13348413,608.37,607.93,3.51]
[1740920531630,1.13348413,608.36,607.93,3.51]
[1740920532230,1.13348413,608.35,607.93,3.51]
[1740920532727,1.13348413,608.34,607.93,3.51]
[1740920533432,1.13348413,608.33,607.93,3.51]
[1740920533832,1.13348413,608.32,607.93,3.51]
[1740920534234,2.85048349,608.32,607.93,3.51]
[1740920534627,1.13348413,608.31,607.93,3.51]
[1740920535031,1.13348413,608.3,607.93,3.51]
[1740920535331,1.13348413,608.29,607.93,3.51]
[1740920535633,1.13348413,608.29,607.93,5.091]
[1740920535830,1.13348413,608.28,607.93,5.091]
[1740920536427,1.13348413,608.27,607.93,5.091]